bitfinex-derivatives/quotes_SOLF0:USTF0_20251109
["timestamp","ask_amount","ask_price","bid_price","bid_amount"]
[1762698546739,3.14,161.85,161.84,0.04626272]
[1762698547132,9.03041736,161.85,161.72,3.1]
[1762698547334,7.79041736,161.84,161.77,5.5645]
[1762698547528,7.79041736,161.84,161.72,3.1]
[1762698547529,3.14,161.84,161.72,3.1]
[1762698547735,7.79041736,161.89,161.81,5.5631]
[1762698547938,7.79041736,161.88,161.77,3.1]
[1762698548143,0.04581664,161.84,161.81,0.04752062]
[1762698549042,0.04581664,161.84,161.82,5.563]
[1762698549740,0.04581664,161.84,161.81,0.04752062]
[1762698550238,0.04581664,161.84,161.81,5.61082062]
[1762698550738,0.04581664,161.84,161.81,0.04752062]
[1762698551037,0.04581664,161.84,161.81,3.14752062]
[1762698551543,3.14,161.93,161.81,3.14752062]
[1762698551544,4.65041736,161.91,161.82,3.1]
[1762698551743,4.65041736,161.92,161.82,3.1]
[1762698552336,7.79041736,161.95,161.82,3.1]
[1762698552641,0.04354715,161.9,161.87,0.03990421]
[1762698552944,4.65041736,161.96,161.88,3.1]
[1762698553131,4.65041736,161.99,161.88,3.1]
[1762698553336,7.79041736,162.0,161.88,3.1]
[1762698553535,4.65041736,161.99,161.88,3.1]
[1762698553738,7.79041736,162.0,161.88,3.1]
[1762698554040,7.79041736,162.0,161.92,0.04553762]
[1762698554239,3.14,162.0,161.92,0.04553762]
[1762698556142,7.78060977,162.0,161.92,0.04553762]
[1762698556348,3.14,162.0,161.92,0.04553762]
[1762698556847,3.14,162.0,161.94,5.5585]
[1762698557049,3.14,162.0,161.95,0.04110003]
[1762698557849,3.14,162.0,161.95,5.59940003]
[1762698558952,3.14,162.0,161.95,0.04110003]
[1762698559252,3.14,161.99,161.95,0.04110003]
[1762698559546,9.6892,162.01,161.95,3.14110003]
[1762698559740,0.2172,162.01,161.95,3.14110003]
[1762698560144,0.2172,162.01,161.99,8.6569]
[1762698560339,3.14,162.09,161.98,3.13971263]
[1762698560551,7.77797297,162.09,162.02,0.04124756]
[1762698560753,3.14,162.08,162.02,0.04124756]
[1762698560943,3.14,162.08,162.03,0.0402024]
[1762698561145,5.74549962,162.12,162.03,3.1402024]
[1762698561146,3.14,162.12,162.03,3.1402024]
[1762698561342,8.6928,162.12,162.03,0.0402024]
[1762698561543,4.63797297,162.11,162.03,0.0402024]
[1762698561844,3.14,162.09,162.03,0.0402024]
[1762698562248,5.74549962,162.12,161.95,3.1]
[1762698562249,3.14,162.07,161.95,3.1]
[1762698562446,3.14,162.05,161.9,3.1]
[1762698562647,3.14,162.03,161.9,3.1]
[1762698562849,3.14,162.01,161.92,5.5595]
[1762698563053,3.14,162.0,161.86,71.1]
[1762698563247,3.18118796,161.95,161.91,0.04180196]
[1762698563445,3.18118796,161.95,161.91,0.04392987]
[1762698564248,3.18118796,161.95,161.81,3.1]
[1762698564450,3.18118796,161.95,161.78,71.04]
[1762698564451,3.14,161.93,161.78,71.04]
[1762698564656,3.14,161.93,161.79,3.1]
[1762698565148,0.04751591,161.88,161.84,0.04510087]
[1762698565455,3.14,162.01,161.88,3.1]
[1762698565751,3.14,162.04,161.88,3.1]
[1762698565948,3.14,162.04,161.94,5.5588]
[1762698566146,3.14,162.04,161.9,3.1]
[1762698566351,3.14,162.04,161.95,0.04531671]
[1762698566352,0.0387713,161.99,161.95,0.04531671]
[1762698566750,0.0387713,161.99,161.95,3.14531671]
[1762698567055,0.0387713,161.99,161.96,3.1]
[1762698567254,0.0387713,161.99,161.98,3.1]
[1762698568448,7.77100488,162.12,161.99,3.1]
[1762698568646,3.14,162.12,161.99,3.1]
[1762698569055,3.14,162.12,162.03,3.1]
[1762698569254,3.14,162.16,162.03,3.1]
[1762698569461,3.14,162.16,162.08,0.04567448]
[1762698570350,3.14,162.16,162.09,5.5535]
[1762698571355,1.57370694,162.17,162.1,3.1]
[1762698571555,1.57370694,162.17,162.12,3.14026343]
[1762698571764,1.57370694,162.17,162.13,0.03989798]
[1762698572555,4.51370694,162.17,162.13,0.03989798]
[1762698572856,2.94,162.16,162.02,2.95]
[1762698573251,2.94,162.16,162.02,8.5061]
[1762698573650,0.03893445,162.11,162.07,0.04576049]
[1762698573851,2.97893445,162.11,162.07,0.04576049]
[1762698575056,2.94,162.09,162.01,5.5564]
[1762698575255,2.94,162.16,162.0,2.95]
[1762698575958,0.04231208,162.1,162.06,0.04715623]
[1762698576162,0.04231208,162.1,162.06,0.0411612]
[1762698576163,2.94,162.09,162.06,0.0411612]
[1762698577259,0.04231208,162.1,162.06,0.0411612]
[1762698577651,0.04231208,162.1,162.06,2.9911612]
[1762698578053,1.57370694,162.17,162.06,4.2311612]
[1762698578361,1.57370694,162.17,162.08,2.95]
[1762698578557,79.02,162.27,162.09,2.95]
[1762698578757,2.94,162.26,162.16,5.5512]
[1762698579157,0.04238287,162.23,162.19,0.04143291]
[1762698579565,0.04238287,162.23,162.19,2.99143291]
[1762698579767,0.04238287,162.23,162.19,0.04143291]
[1762698579962,0.04238287,162.23,162.19,2.99143291]
[1762698580863,2.94,162.37,162.21,2.95]
[1762698581059,2.94,162.43,162.25,2.95]
[1762698581456,2.94,162.43,162.29,5.5468]
[1762698581668,2.94,162.43,162.3,2.95]
[1762698582064,2.94,162.43,162.35,0.0450918]
[1762698586870,8.4823,162.43,162.35,0.0450918]
[1762698587070,2.94,162.43,162.25,8.498]
[1762698587268,3.11,162.42,162.25,8.498]
[1762698587470,3.11,162.41,162.25,8.498]
[1762698587776,70.48,162.42,162.22,5.5491]
[1762698587777,3.11,162.38,162.22,5.5491]
[1762698587959,3.11,162.38,162.2,3.08]
[1762698588159,0.0450918,162.31,162.27,0.04328844]
[1762698588370,0.0450918,162.31,162.27,0.04617939]
[1762698589058,3.1550918,162.31,162.27,0.04617939]
[1762698589461,0.0450918,162.31,162.27,0.04617939]
[1762698590072,0.0450918,162.31,162.27,5.59377939]
[1762698590273,3.1550918,162.31,162.27,5.59377939]
[1762698590467,0.0450918,162.31,162.27,5.59377939]
[1762698590973,3.1550918,162.31,162.27,0.04617939]
[1762698594078,0.0450918,162.31,162.27,3.12617939]
[1762698594883,0.0450918,162.31,162.29,5.5469]
[1762698595179,0.0450918,162.31,162.27,0.04617939]
[1762698595584,0.0450918,162.31,162.27,3.12617939]
[1762698595980,0.0450918,162.31,162.29,5.5466]
[1762698596684,0.0450918,162.31,162.3,3.08]
[1762698597987,0.0450918,162.31,162.29,5.5466]
[1762698598182,0.0450918,162.31,162.29,8.6266]
[1762698598989,0.0450918,162.31,162.29,5.5466]
[1762698599489,0.0450918,162.31,162.29,8.6266]
[1762698600091,0.0450918,162.31,162.3,3.08]
[1762698600287,3.11,162.42,162.3,3.08]
[1762698601183,3.11,162.49,162.35,3.08]
[1762698601486,3.11,162.49,162.4,0.04741291]
[1762698602098,3.11,162.49,162.43,5.542]
[1762698602384,3.11,162.49,162.44,0.04137737]
[1762698602890,1.70124891,162.5,162.44,0.04137737]
[1762698603392,4.69124891,162.5,162.46,5.5408]
[1762698603590,4.69124891,162.5,162.44,0.04137737]
[1762698603788,1.70124891,162.5,162.44,3.01137737]
[1762698604287,2.99,162.49,162.46,5.5408]
[1762698604487,2.99,162.49,162.44,0.04137737]
[1762698604694,1.70124891,162.5,162.44,0.04137737]
[1762698605285,4.69124891,162.5,162.45,5.5412]
[1762698605492,4.69124891,162.5,162.44,0.04137737]
[1762698605693,4.891e-05,162.5,162.44,3.01137737]
[1762698605993,4.891e-05,162.5,162.49,2.97]
[1762698606195,4.891e-05,162.5,162.48,5.58453323]
[1762698606394,2.99004891,162.5,162.48,0.04443323]
[1762698606587,2.99,162.48,162.31,5.45587871]
[1762698606783,2.99,162.42,162.26,2.97]
[1762698606985,4.891e-05,162.5,162.28,2.97]
[1762698607189,4.891e-05,162.5,162.3,2.97]
[1762698607385,4.891e-05,162.5,162.32,2.97]
[1762698607689,0.04333809,162.43,162.39,3.01070488]
[1762698607893,0.04333809,162.43,162.42,2.97]
[1762698608090,4.891e-05,162.5,162.42,2.97]
[1762698608301,4.891e-05,162.5,162.47,5.5407]
[1762698608796,4.891e-05,162.5,162.47,8.5107]
[1762698608986,4.891e-05,162.5,162.47,8.5558675]
[1762698609188,4.891e-05,162.5,162.47,5.5858675]
[1762698609399,4.891e-05,162.5,162.47,0.0451675]
[1762698610486,4.891e-05,162.5,162.48,10.04937927]
[1762698610679,4.891e-05,162.5,162.48,5.5404]
[1762698610890,2.99,162.6,162.47,3.0151675]
[1762698611087,2.99,162.6,162.52,0.04706307]
[1762698612089,2.99,162.6,162.42,5.45587871]
[1762698612403,1.07081865,162.67,162.37,2.97]
[1762698612404,2.99,162.54,162.37,2.97]
[1762698612691,2.99,162.51,162.37,2.97]
[1762698613285,2.99,162.45,162.42,0.03981344]
[1762698613485,3.03684653,162.45,162.42,0.04423487]
[1762698613881,2.99,162.44,162.34,8.5148]
[1762698614296,2.99,162.44,162.35,4.52804457]
[1762698614493,2.99,162.44,162.34,8.5148]
[1762698614789,0.04112215,162.41,162.37,0.04719686]
[1762698615389,0.04112215,162.41,162.37,3.01719686]
[1762698615984,0.04112215,162.41,162.39,2.97]
[1762698616293,0.04112215,162.41,162.37,3.01719686]
[1762698616497,0.04112215,162.41,162.38,4.52991932]
[1762698616691,0.04112215,162.41,162.4,2.97]
[1762698616885,2.99,162.5,162.4,2.97]
[1762698617788,2.99,162.5,162.36,2.97]
[1762698617988,2.99,162.5,162.35,5.45587871]
[1762698617989,0.04543436,162.45,162.41,0.04306873]
[1762698618991,3.03543436,162.45,162.41,0.04306873]
[1762698620287,6.82683436,162.45,162.34,5.45587871]
[1762698620500,2.99,162.44,162.35,4.55205691]
[1762698620791,2.99,162.44,162.37,5.5438]
[1762698620999,2.99,162.44,162.38,4.55205691]
[1762698621197,2.99,162.44,162.39,4.56126681]
[1762698621496,2.99,162.42,162.32,5.45587871]
[1762698621698,2.99,162.42,162.34,5.45587871]
[1762698621993,2.99,162.42,162.35,4.56322293]
[1762698622192,2.99,162.42,162.36,4.56322293]
[1762698622404,2.99,162.42,162.37,4.56322293]
[1762698622600,2.99,162.4,162.38,4.57208628]
[1762698622898,3.03444534,162.41,162.39,4.57208628]
[1762698623098,0.04444534,162.41,162.4,4.57208628]
[1762698623992,0.04444534,162.41,162.4,10.02796499]
[1762698624197,0.04444534,162.41,162.4,4.57208628]
[1762698625096,0.04444534,162.41,162.4,10.10669538]
[1762698625301,0.04444534,162.41,162.4,4.57208628]
[1762698625501,2.99,162.57,162.46,2.97]
[1762698625898,2.99,162.57,162.49,5.52766986]
[1762698626101,2.99,162.57,162.5,4.57208628]
[1762698626402,2.99,162.57,162.43,5.52766986]
[1762698626600,2.99,162.54,162.44,4.5769449]
[1762698626797,2.99,162.54,162.45,4.5769449]
[1762698626990,2.99,162.52,162.46,4.5769449]
[1762698627194,2.99,162.52,162.4,5.52766986]
[1762698627400,2.99,162.52,162.39,5.52766986]
[1762698627606,2.99,162.46,162.37,5.52766986]
[1762698627793,2.99,162.46,162.38,5.52766986]
[1762698628107,2.99,162.46,162.36,5.52766986]
[1762698628299,2.99,162.46,162.33,7.37022648]
[1762698628300,2.99,162.45,162.35,11.07216986]
[1762698628494,2.99,162.45,162.35,5.5445]
[1762698628701,3.03362814,162.42,162.38,0.04723672]
[1762698629706,0.04362814,162.42,162.38,0.04723672]
[1762698630005,0.04362814,162.42,162.39,5.52766986]
[1762698630200,0.04362814,162.42,162.39,2.97]
[1762698630402,0.04362814,162.42,162.4,2.97]
[1762698630710,0.04362814,162.42,162.41,2.97]
[1762698631006,78.8,162.56,162.41,2.97]
[1762698631007,2.99,162.62,162.41,11.58022648]
[1762698631207,2.99,162.62,162.43,5.53518349]
[1762698631409,2.99,162.62,162.41,2.97]
[1762698631410,2.99,162.62,162.44,5.53518349]
[1762698631801,3.11717337,162.55,162.51,0.0406546]
[1762698632002,3.11058425,162.55,162.51,0.03945209]
[1762698632311,3.11058425,162.55,162.39,5.53518349]
[1762698632312,3.07,162.5,162.39,5.53518349]
[1762698632697,86.1032,162.64,162.35,12.90540997]
[1762698632698,3.07,162.48,162.35,12.90540997]
[1762698632902,3.07,162.47,162.37,5.53518349]
[1762698633099,3.07,162.47,162.39,5.53518349]
[1762698633401,3.07,162.44,162.41,0.04308429]
[1762698633597,3.07,162.44,162.41,0.04666623]
[1762698633598,3.11005554,162.44,162.41,0.04666623]
[1762698634807,0.04005554,162.44,162.41,0.04666623]
[1762698635010,70.16,162.53,162.41,0.04666623]
[1762698635011,7.124e-05,162.43,162.41,3.10666623]
[1762698635203,7.124e-05,162.43,162.3,86.2759]
[1762698635204,5.70394369,162.52,162.48,3.06]
[1762698635400,5.70394369,162.55,162.48,3.06]
[1762698635708,5.70394369,162.55,162.51,5.5391]
[1762698635909,5.70394369,162.55,162.48,3.06]
[1762698636109,5.74343271,162.55,162.51,0.04509678]
[1762698636407,0.03948902,162.55,162.52,5.5387]
[1762698636607,0.03948902,162.55,162.51,3.10509678]
[1762698637306,0.03948902,162.55,162.53,8.5986]
[1762698637714,0.03948902,162.55,162.54,3.06]
[1762698638309,4.63e-05,162.65,162.55,3.06]
[1762698638511,128.37110938,162.72,162.57,86.1366]
[1762698638714,109.50226947,162.72,162.58,3.06]
[1762698639007,3.07,162.75,162.61,3.06]
[1762698639203,0.04655892,162.7,162.66,0.03998199]
[1762698639399,3.11339409,162.7,162.66,0.04646685]
[1762698640703,3.11339409,162.7,162.59,5.5365]
[1762698640898,3.07,162.7,162.57,3.06]
[1762698641310,3.07,162.68,162.57,3.06]
[1762698641709,0.04317795,162.64,162.61,0.04035144]
[1762698641909,3.11317795,162.64,162.61,0.04035144]
[1762698642305,3.11317795,162.64,162.52,3.06]
[1762698642503,10.67525826,162.68,162.52,3.06]
[1762698642809,3.07,162.67,162.57,3.06]
[1762698643206,0.03921907,162.64,162.57,3.06]
[1762698643510,0.03921907,162.64,162.6,3.10674815]
[1762698643710,0.04308248,162.64,162.6,3.10697791]
[1762698644410,0.04308248,162.64,162.6,0.04697791]
[1762698644615,0.04308248,162.64,162.6,3.10697791]
[1762698647608,0.04308248,162.64,162.61,2.94]
[1762698648209,0.04308248,162.64,162.62,2.94]
[1762698648608,0.04308248,162.64,162.63,8.4753]
[1762698648804,11.26358165,162.76,162.63,8.4753]
[1762698648805,2.25270402,162.88,162.71,40.71]
[1762698649006,3.0,163.05,162.82,86.0036]
[1762698649202,3.0,163.05,162.79,86.0178]
[1762698649509,3.0,163.03,162.82,86.0037]
[1762698649809,0.04378584,162.94,162.91,0.04209199]
[1762698650112,0.04378584,162.94,162.91,0.04200198]
[1762698650113,0.04037603,162.94,162.91,0.04200198]
[1762698650411,0.04037603,162.94,162.92,5.5254]
[1762698651306,3.0,163.09,162.91,0.04200198]
[1762698651609,3.46,163.08,162.91,85.9561]
[1762698651810,3.0,163.14,162.95,5.5242]
[1762698652012,3.0,163.14,162.92,62.0]
[1762698652207,3.0,163.12,162.92,62.0]
[1762698652415,0.03971657,163.05,163.01,0.04108333]
[1762698652618,0.03971657,163.05,162.92,62.0]
[1762698652805,3.46,163.04,162.92,62.0]
[1762698653112,3.46,163.07,162.92,62.0]
[1762698653319,3.0,163.06,162.92,62.0]
[1762698653616,3.03980245,163.01,162.83,5.5282]
[1762698653918,3.0,163.01,162.81,270.69024274]
[1762698654112,85.8602,163.1,162.81,270.69024274]
[1762698654113,6.46,163.0,162.81,270.69024274]
[1762698654308,3.0,163.0,162.81,270.69024274]
[1762698654508,0.04676377,162.92,162.89,0.04175829]
[1762698654809,0.04542527,162.92,162.89,0.04214797]
[1762698655119,3.46,162.91,162.89,0.04214797]
[1762698655503,3.46,162.9,162.89,0.04214797]
[1762698655708,3.46,162.91,162.89,0.04214797]
[1762698656012,6.46,162.91,162.89,0.04214797]
[1762698656208,0.04542527,162.92,162.81,276.21914274]
[1762698656209,3.0,162.9,162.81,270.69024274]
[1762698656403,3.0,162.9,162.74,114.48812847]
[1762698656612,3.0,162.88,162.72,5.5322]
[1762698656809,3.0,162.88,162.61,86.1134]
[1762698657120,3.0,162.8,162.62,5.5353]
[1762698657411,3.0,162.76,162.57,86.1362]
[1762698657609,3.0,162.76,162.6,5.5361]
[1762698657911,3.0,162.74,162.5,72.89222]
[1762698658115,3.0,162.74,162.5,0.17222]
[1762698658418,0.03973421,162.64,162.6,0.04676285]
[1762698658618,3.0,162.72,162.5,0.17222]
[1762698658917,0.04023505,162.64,162.6,0.04004005]
[1762698659119,0.0412261,162.64,162.6,0.04728742]
[1762698659915,0.0412261,162.64,162.52,62.0]
[1762698659916,3.41785203,162.63,162.52,62.0]
[1762698660212,3.41785203,162.63,162.5,0.17222]
[1762698660412,3.41785203,162.62,162.5,0.17222]
[1762698660609,3.0,162.66,162.5,0.17222]
[1762698660911,3.41785203,162.67,162.5,0.17222]
[1762698660912,3.0,162.6,162.5,0.17222]
[1762698661110,3.0,162.6,162.43,261.82232586]
[1762698661305,86.1089,162.63,162.43,261.82232586]
[1762698661306,3.0,162.54,162.43,261.82232586]
[1762698661506,3.0,162.54,162.36,72.6]
[1762698661713,3.0,162.52,162.36,72.6]
[1762698662117,0.04393405,162.46,162.42,0.04722106]
[1762698662314,0.04393405,162.46,162.42,0.03945301]
[1762698662915,0.04393405,162.46,162.43,5.542]
[1762698663113,2.95,162.57,162.43,5.542]
[1762698663314,3.41785203,162.56,162.43,5.542]
[1762698663510,3.41785203,162.56,162.42,62.0]
[1762698663720,6.36785203,162.55,162.42,62.0]
[1762698663914,6.36785203,162.55,162.31,86.2705]
[1762698663915,2.95,162.54,162.31,5.5458]
[1762698664115,2.98984556,162.44,162.26,72.44]
[1762698664317,2.98984556,162.44,162.17,172.6915]
[1762698664318,2.95,162.44,162.19,86.3349]
[1762698664519,2.95,162.42,162.26,5.5478]
[1762698664818,2.95,162.5,162.29,86.2837]
[1762698665114,0.04077662,162.41,162.38,0.03955161]
[1762698665320,0.04554069,162.41,162.38,0.04082516]
[1762698665918,3.46339272,162.41,162.38,0.04082516]
[1762698666120,0.04554069,162.41,162.39,5.5434]
[1762698666519,2.95,162.54,162.39,5.5434]
[1762698666722,2.95,162.54,162.41,5.5425]
[1762698666923,3.41785203,162.53,162.41,5.5425]
[1762698667122,3.41785203,162.53,162.39,62.0]
[1762698667424,3.41785203,162.52,162.39,62.0]
[1762698667630,0.03883716,162.47,162.44,0.04096429]
[1762698667823,2.98883716,162.47,162.44,0.04096429]
[1762698668031,3.41785203,162.46,162.36,5.5444]
[1762698668228,3.41785203,162.46,162.23,97.22909845]
[1762698668229,2.95,162.45,162.26,5.42856752]
[1762698668425,2.95,162.45,162.24,7.27559897]
[1762698668426,2.95,162.44,162.2,5.42856752]
[1762698668619,2.95,162.43,162.21,4.48810433]
[1762698668927,0.04402068,162.34,162.3,0.04124613]
[1762698669232,0.04303962,162.34,162.3,0.04627455]
[1762698669526,0.04303962,162.34,162.18,7.27559897]
[1762698669527,6.36785203,162.33,162.21,5.5495]
[1762698669739,3.41785203,162.33,162.22,4.4878504]
[1762698669914,2.95,162.39,162.19,91.76626752]
[1762698669915,3.41785203,162.32,162.23,4.4878504]
[1762698670120,2.95,162.37,162.19,5.42856752]
[1762698670316,2.95,162.37,162.16,5.42856752]
[1762698670529,2.95,162.35,162.25,0.04259395]
[1762698670728,2.95,162.35,162.28,0.03882629]
[1762698671026,2.95,162.31,162.16,62.0]
[1762698671429,3.41785203,162.3,162.17,86.3491]
[1762698671723,2.95,162.36,162.18,4.4858329]
[1762698671929,0.04665006,162.29,162.25,0.04708697]
[1762698672124,0.04665006,162.29,162.26,5.5479]
[1762698672330,2.95,162.36,162.26,5.5479]
[1762698672628,3.41785203,162.35,162.26,5.5479]
[1762698673130,3.41785203,162.34,162.26,5.5479]
[1762698673331,0.04215856,162.32,162.28,5.59107794]
[1762698673530,0.04215856,162.32,162.28,0.04417794]
[1762698673531,0.04650191,162.32,162.28,0.04417794]
[1762698673730,3.41785203,162.31,162.28,0.04417794]
[1762698674137,3.41785203,162.3,162.28,0.04417794]
[1762698674328,0.04650191,162.32,162.28,0.04417794]
[1762698674329,3.41785203,162.31,162.28,0.04417794]
[1762698674837,3.41785203,162.3,162.28,0.04417794]
[1762698675035,6.36785203,162.31,162.28,0.04417794]
[1762698675226,2.95,162.3,162.16,62.0]
[1762698675430,2.95,162.28,162.08,265.30042471]
[1762698675628,21.93785203,162.42,162.08,265.30042471]
[1762698675827,78.74,162.43,162.19,5.5501]
[1762698675828,2.95,162.37,162.19,5.5501]
[1762698676128,2.99541869,162.3,162.26,0.04604324]
[1762698676328,0.04494613,162.3,162.26,0.04369199]
[1762698676921,2.95,162.42,162.28,5.5471]
[1762698677123,2.95,162.4,162.17,86.3471]
[1762698677339,2.95,162.4,162.18,86.3439]
[1762698677529,2.95,162.38,162.18,86.3439]
[1762698677927,0.04637634,162.3,162.27,5.5475]
[1762698678134,0.03949809,162.3,162.27,0.04001004]
[1762698678529,78.78,162.47,162.29,86.284]
[1762698678730,3.41785203,162.46,162.28,148.2904]
[1762698678931,3.41785203,162.46,162.3,86.2801]
[1762698679135,3.41785203,162.45,162.33,86.2637]
[1762698679435,0.04115145,162.41,162.37,0.04308601]
[1762698679626,0.04059976,162.41,162.37,0.0429425]
[1762698680137,0.04059976,162.41,162.38,6.7837]
[1762698680329,0.04059976,162.41,162.38,5.5437]
[1762698680525,0.04059976,162.41,162.4,5.5431]
[1762698680728,189.81664954,162.64,162.4,90.63531212]
[1762698680936,2.95,162.63,162.39,86.2276]
[1762698681238,2.95,162.62,162.38,72.3]
[1762698681838,0.04255223,162.52,162.48,0.04670935]
[1762698682027,0.04610119,162.52,162.48,0.0388097]
[1762698683235,4.23610119,162.52,162.3,151.04]
[1762698683433,2.95,162.52,162.31,4.41668367]
[1762698683634,2.95,162.52,162.41,5.5427]
[1762698683833,2.95,162.52,162.32,90.68608367]
[1762698683834,2.95,162.52,162.3,151.04]
[1762698684025,2.95,162.52,162.3,72.24]
[1762698684231,2.99559349,162.43,162.23,72.24]
[1762698684432,2.95,162.43,162.25,86.3039]
[1762698684638,2.95,162.43,162.23,72.24]
[1762698685338,2.99395051,162.35,162.31,0.04063694]
[1762698685538,2.95,162.35,162.15,78.78]
[1762698686439,86.1828,162.49,162.23,0.04267482]
[1762698686440,2.95,162.26,162.23,0.04267482]
[1762698686628,0.04146699,162.26,162.23,0.04698551]
[1762698686834,0.04146699,162.26,162.23,5.59578551]
[1762698687436,0.04146699,162.26,162.23,0.04698551]
[1762698687932,0.04146699,162.26,162.23,5.59578551]
[1762698688239,2.95,162.42,162.24,87.5496]
[1762698688437,2.95,162.42,162.19,86.3362]
[1762698688634,2.95,162.42,162.17,86.3471]
[1762698688635,2.95,162.41,162.2,72.3]
[1762698688939,2.95,162.41,162.25,5.5481]
[1762698689243,2.99087327,162.35,162.31,0.04692635]
[1762698689443,2.99087327,162.35,162.31,0.04311237]
[1762698689444,2.99339347,162.35,162.31,0.04311237]
[1762698689740,2.95,162.34,162.21,62.0]
[1762698689941,2.95,162.34,162.21,67.5494]
[1762698690130,2.95,162.34,162.21,62.0]
[1762698690634,2.95,162.34,162.23,5.5487]
[1762698690839,0.04181768,162.3,162.27,0.04277167]
[1762698691039,2.95,162.29,162.2,5.5497]
[1762698691235,2.95,162.29,162.13,72.16]
[1762698691641,2.95,162.35,162.15,86.3596]
[1762698691943,0.03913185,162.27,162.23,0.042544]
[1762698692334,2.96913185,162.27,162.23,0.042544]
[1762698693240,0.03913185,162.27,162.23,0.042544]
[1762698693646,2.96913185,162.27,162.23,0.042544]
[1762698695343,0.03913185,162.27,162.23,0.042544]
[1762698695843,0.03913185,162.27,162.25,5.5481]
[1762698696849,81.75,162.4,162.23,0.042544]
[1762698697040,81.75,162.4,162.22,71.9]
[1762698697246,81.75,162.4,162.24,86.3115]
[1762698697440,2.93,162.47,162.26,86.3006]
[1762698697645,2.93,162.47,162.27,90.80033679]
[1762698697845,0.04028972,162.39,162.35,0.0447164]
[1762698698039,0.04459547,162.39,162.35,0.04220145]
[1762698698241,0.04459547,162.39,162.36,4.51049165]
[1762698698440,0.04459547,162.39,162.37,5.5441]
[1762698699242,0.04459547,162.39,162.35,0.04220145]
[1762698699747,0.04459547,162.39,162.36,4.445999]
[1762698699943,2.93,162.52,162.42,5.5424]
[1762698700139,2.93,162.52,162.38,5.42856752]
[1762698700345,2.93,162.52,162.36,7.27559897]
[1762698700346,2.93,162.52,162.36,5.42856752]
[1762698700647,2.93,162.52,162.37,5.42856752]
[1762698700946,0.04691917,162.46,162.43,0.04412954]
[1762698701543,0.04691917,162.46,162.44,5.5418]
[1762698701742,0.04691917,162.46,162.43,0.04412954]
[1762698702836,2.97691917,162.46,162.43,0.04412954]
[1762698703340,0.04691917,162.46,162.36,5.42856752]
[1762698703646,2.93,162.5,162.4,5.42856752]
[1762698703853,2.93,162.5,162.39,5.42856752]
[1762698704148,2.93,162.5,162.4,5.42856752]
[1762698704348,0.04693647,162.46,162.43,0.04320133]
[1762698704848,0.04693647,162.46,162.45,5.5414]
[1762698705148,0.04693647,162.46,162.45,5.49988076]
[1762698705354,0.04693647,162.46,162.44,5.49988076]
[1762698705544,0.04693647,162.46,162.43,0.04320133]
[1762698705740,0.04693647,162.46,162.45,5.49988076]
[1762698705941,0.04693647,162.46,162.43,5.54308209]
[1762698706140,0.04693647,162.46,162.44,5.5418]
[1762698706349,2.93,162.55,162.44,7.27559897]
[1762698706543,2.93,162.55,162.46,5.49530919]
[1762698706847,2.93,162.55,162.47,5.49530919]
[1762698707043,2.93,162.55,162.44,5.49530919]
[1762698707241,2.93,162.55,162.43,5.49530919]
[1762698707442,3.19,162.5,162.47,0.04425238]
[1762698707644,3.23599161,162.5,162.47,0.04045801]
[1762698708448,3.19,162.49,162.47,0.04045801]
[1762698708744,0.04599161,162.5,162.47,0.04045801]
[1762698708950,3.23599161,162.5,162.47,0.04045801]
[1762698709140,0.04599161,162.5,162.47,0.04045801]
[1762698709343,3.23599161,162.5,162.47,0.04045801]
[1762698710439,3.19,162.49,162.47,0.04045801]
[1762698710644,3.19,162.49,162.39,5.49530919]
[1762698710645,3.19,162.48,162.39,5.49530919]
[1762698710945,3.19,162.45,162.37,5.49530919]
[1762698711152,3.19,162.45,162.34,5.49530919]